Cogmind - Beta 11.2 @@@ ROGUE MODE // 2022.12.29 @ 04:25:05 Player: KTG-V3 Result: Destroyed by as-42461 with Assembled Heavy Rifle Performance ------------- Evolutions (0) 0 Regions Visited (2) 400 Robots Destroyed (25) 125 Value Destroyed (449) 449 Prototype IDs (0) 0 Alien Tech Used (0) 0 Bonus (0) 0 TOTAL SCORE: 974 Bonus ------- None Cogmind --------- Core Integrity 0/250 Matter 270/300 Energy 90/100 System Corruption 6% Temperature Cool (94) Movement Core (400) Ox7 Location -10/Mines Parts ------- > --- POWER (1) -------- (None) > --- PROPULSION (2) --- (None) > --- UTILITY (2) ------ Large Storage Unit > --- WEAPON (2) ------- Medium Laser Medium Laser > --- INVENTORY (15) --- Ion Engine Flight Unit Flight Unit Medium Storage Unit Sensor Array Signal Interpreter Seismic Detector Light Armor Plating Beam Cannon Peak State ------------ > --- POWER ------------ Ion Engine > --- PROPULSION ------- Light Treads Light Treads > --- UTILITY ---------- Large Storage Unit Machine Analyzer > --- WEAPON ----------- Light Assault Rifle Light Assault Rifle > --- INVENTORY -------- Ion Engine Light Ion Engine Aluminum Leg Aluminum Leg Wheel Compact Wheel Flight Unit Light Armor Plating Light Assault Rifle Light Assault Rifle [Rating: 10] Favorites ----------- Power Ion Engine Engine Ion Engine Propulsion Light Treads Treads Light Treads Leg Aluminum Leg Utility Large Storage Unit Device Improved Heat Sink Storage Large Storage Unit Processor Machine Analyzer Protection Light Armor Plating Weapon Light Assault Rifle Energy Gun Medium Laser Ballistic Gun Light Assault Rifle Build | -11 -10 -10 ------- Run | Scr Mat Min Slots Evolved . | . . . Power . | . . . Propulsion . | . . . Utility . | . . . Weapon . | . . . Parts Attached 22 | 6 8 8 Power 6 | 1 3 2 Engine 6 | 1 3 2 Core . | . . . Reactor . | . . . Propulsion 5 | 2 1 2 Treads 4 | 2 1 1 Leg 1 | . . 1 Wheel . | . . . Hover . | . . . Flight . | . . . Utility 5 | 1 2 2 Device 1 | . . 1 Storage 2 | 1 1 . Processor 1 | . 1 . Hackware . | . . . Protection 1 | . . 1 Artifact . | . . . Weapon 6 | 2 2 2 Energy Gun 2 | . . 2 Energy Cannon . | . . . Ballistic Gun 4 | 2 2 . Ballistic Cannon . | . . . Launcher . | . . . Special Weapon . | . . . Impact Weapon . | . . . Slashing Weapon . | . . . Piercing Weapon . | . . . Special Melee Weapon . | . . . Unidentified Prototypes . | . . . Parts Lost 11 | . 1 10 Power 2 | . . 2 Propulsion 5 | . 1 4 Utility 2 | . . 2 Weapon 2 | . . 2 Highest Loss Streak 9 | . 1 9 To Critical Strikes . | . . . Average Slot Usage (%) 96 | . 97 94 Engine 13 | . 14 13 Treads 26 | . 27 24 Storage 14 | . 14 14 Processor 9 | . 11 . Protection 1 | . . 11 Ballistic Gun 27 | . 28 24 Naked Turns . | . . . Heaviest Build 32 | 12 32 31 Greatest Support 40 | 40 40 40 Greatest Overweight (x) 1 | . 1 1 Average Overweight (x) . | . . . Largest Inventory Capacity 15 | 8 15 15 Average Capacity 13 | 6 13 15 Most Carried 15 | 6 15 15 Average Carried 11 | 3 11 14 Final Capacity 15 | 8 15 15 Final Carried 15 | 6 15 9 Class Distribution -------------------- 100% | Mutant Dominant Class ---------------- Mutant | -10/Materials Mutant | -10/Mines Resources | -11 -10 -10 ----------- Run | Scr Mat Min Matter Collected 607 | 294 200 113 Remotely . | . . . Salvage Created 835 | 117 507 211 Parts 64 | 5 45 14 Haulers Intercepted 2 | . 2 . Recyclers Shooed 2 | 1 1 . Parts Field Recycled . | . . . Retrieved Matter . | . . . Parts Self-Destructed . | . . . Prevented . | . . . Kills | -11 -10 -10 ------- Run | Scr Mat Min Combat Hostiles Destroyed 16 | . 11 5 Guns 16 | . 11 5 Classes Destroyed 10 | 2 5 3 Worker 1 | . . 1 Builder 1 | . . 1 Tunneler 2 | 2 . . Hauler 2 | . 2 . Recycler 1 | 1 . . Mechanic 1 | . 1 . Watcher 3 | . 3 . Swarmer 6 | . 6 . Grunt 8 | . 5 3 Assembled 2 | . . 2 Best Kill Streak 4 | 2 4 3 Combat Bots Only 4 | . 4 2 Max Kills in Single Turn 2 | 1 1 2 Gunslinging . | . . . Exploded . | . . . Melee . | . . . Uniques/NPCs Destroyed . | . . . Combat | -11 -10 -10 -------- Run | Scr Mat Min Damage Taken 1613 | . 452 1161 Core 255 | . 99 156 Absorbed by Shields . | . . . Core Remaining (%) 100 | 100 . . Volleys Fired 101 | 17 59 25 Largest 2 | 2 2 2 Hottest 100 | 40 40 100 Shots Fired 200 | 34 118 48 Gun 200 | 34 118 48 Cannon . | . . . Launcher . | . . . Special . | . . . Kinetic 187 | 34 118 35 Thermal 13 | . . 13 Explosive . | . . . Electromagnetic . | . . . Robot Hit Streak 9 | 7 9 9 Robot Miss Streak 5 | 3 5 2 Penetration Max . | . . . Secondary Targets 4 | . 2 2 Max Gunslinging Chain 1 | . 1 1 Shots Hit Robots 125 | 24 70 31 Core Hits 51 | 6 34 11 Critical Kills 2 | . 1 1 Critical Parts Destroyed 1 | . . 1 Critical Strikes 4 | . 1 3 Burn 1 | . . 1 Destroy 3 | . 1 2 Melee Attacks . | . . . Impact . | . . . Slashing . | . . . Piercing . | . . . Sneak Attacks . | . . . Combat Hostiles . | . . . Follow-up Attacks . | . . . Damage Inflicted 1140 | 192 590 358 Guns 1140 | 192 590 358 Cannons . | . . . Explosions . | . . . Melee . | . . . Ramming . | . . . Kinetic 1051 | 192 590 269 Thermal 89 | . . 89 Explosive . | . . . Electromagnetic . | . . . Impact . | . . . Slashing . | . . . Piercing . | . . . Highest Corruption 6 | . 1 6 Average Corruption 1 | . 1 1 Corruption Purged . | . . . Corruption Blocked . | . . . Effects 9 | . 2 7 Message Errors 2 | . . 2 Matter Fused 3 | . 1 2 Heat Flow Errors 1 | . 1 . Parts Rejected 1 | . . 1 Weapon Failures 2 | . . 2 Overload Shots . | . . . Overflow Damage . | . . . Projectiles . | . . . Explosions . | . . . Melee . | . . . Knockbacks . | . . . Impact . | . . . Kinetic . | . . . Secondary . | . . . Self-Inflicted Damage . | . . . Shots . | . . . Rammed . | . . . Targets Rammed . | . . . Kicked . | . . . Crushed . | . . . Highest Temperature 211 | . 211 94 Average Temperature 29 | . 41 20 Received Heat Transfer 277 | . 114 163 Siege Activations . | . . . Robots Corrupted . | . . . Combat Hostiles . | . . . Parts Fried . | . . . Impact Corruptions . | . . . Robots Melted . | . . . Combat Hostiles . | . . . Parts Melted . | . . . Heat Transferred 333 | . . 333 Parts Sabotaged . | . . . Parts Stolen . | . . . Parts Stripped . | . . . Power Chain Reactions . | . . . Missiles Intercepted . | . . . Alert | -11 -10 -10 ------- Run | Scr Mat Min Peak Influence 225 | 15 225 146 Initial 46 | . 9 46 Average 90 | 3 99 104 Maximum Alert Level 1 | . 1 . Low Security (%) 95 | 100 93 100 Level 1 4 | . 6 . Level 2 . | . . . Level 3 . | . . . Level 4 . | . . . Level 5 . | . . . High Security . | . . . Max Security . | . . . Squads Dispatched 1 | . 1 . Investigation 1 | . 1 . Extermination . | . . . Reinforcement . | . . . Assault . | . . . Garrison . | . . . Intercept . | . . . Searches Triggered . | . . . Construction Impeded . | . . . Haulers Reinforced . | . . . Active Scanning Responses . | . . . Cargo Convoy Interrupts . | . . . Stealth | -11 -10 -10 --------- Run | Scr Mat Min Distress Signals 6 | . 6 . Communications Jammed . | . . . Distress Signals . | . . . Times Spotted 38 | . 22 16 Peak Tracking Total 12 | . 5 12 Tactical Retreats 6 | . 3 3 Traps | -11 -10 -10 ------- Run | Scr Mat Min Traps Triggered 1 | . 1 . Indirectly . | . . . Trap Hack Attempts . | . . . Triggered . | . . . Disarmed . | . . . Reprogrammed . | . . . Reused . | . . . Traps Extracted . | . . . Installed . | . . . Triggered . | . . . Machines | -11 -10 -10 ---------- Run | Scr Mat Min Machines Disabled . | . . . Max in Single Turn . | . . . Machines Sabotaged . | . . . Garrisons Compromised . | . . . Overloaded Fab Kills . | . . . Hacking | -11 -10 -10 --------- Run | Scr Mat Min Machines Accessed 6 | . 6 . Terminals 5 | . 5 . Fabricators . | . . . Repair Stations . | . . . Recycling Units 1 | . 1 . Scanalyzers . | . . . Garrison Access . | . . . Total Hacks 14 | . 14 . Successful 7 | . 7 . Failed 6 | . 6 . Catastrophic 1 | . 1 . Database Lockouts 1 | . 1 . Manual 6 | . 6 . Terminals 13 | . 13 . Fabricators . | . . . Repair Stations . | . . . Recycling Units 1 | . 1 . Scanalyzers . | . . . Garrison Access . | . . . Terminal Hacks 4 | . 4 . Robot Analysis 1 | . 1 . Emergency Access Points 1 | . 1 . Locate Traps 2 | . 2 . Fabricator Hacks . | . . . Repair Station Hacks . | . . . Recycling Unit Hacks 1 | . 1 . Retrieve Components 1 | . 1 . Scanalyzer . | . . . Garrison Access Hacks . | . . . Unauthorized Hacks 2 | . 2 . Terminals 2 | . 2 . Assimilate 2 | . 2 . Fabricators . | . . . Repair Stations . | . . . Recycling Units . | . . . Scanalyzers . | . . . Garrison Access . | . . . Data Cores Recovered . | . . . Used . | . . . Hacking Detections 5 | . 5 . Full Trace Events 2 | . 2 . Feedback Events 1 | . 1 . Corruption 1 | . 1 . Feedback Blocked . | . . . Robot Schematics Acquired . | . . . Robots Built . | . . . Authchips . | . . . Time . | . . . Total Robot Build Rating . | . . . Part Schematics Acquired . | . . . Parts Built . | . . . Authchips . | . . . Time . | . . . Total Part Build Rating . | . . . Parts Repaired . | . . . Time . | . . . Parts Recycled . | . . . Recycled Matter . | . . . Retrieved Matter . | . . . Retrieved Components 7 | . 7 . Parts Scanalyzed . | . . . Part Schematics Acquired . | . . . Parts Damaged . | . . . Bothacking | -11 -10 -10 ------------ Run | Scr Mat Min Used RIF Installer . | . . . Robots Hacked . | . . . Non-combat . | . . . Combat . | . . . Robot Hacks Applied . | . . . Relay Couplers Released . | . . . Fabnet Peak Effective % . | . . . Robots Rewired . | . . . Allies Hacked . | . . . Hacks Repelled . | . . . Allies | -11 -10 -10 -------- Run | Scr Mat Min Total Allies 1 | . 1 . Largest Group 1 | . 1 1 Highest-Rated Group 10 | . 10 10 Highest-Rated Ally 10 | . 10 10 Total Orders . | . . . Ally Attacks . | . . . Total Damage . | . . . Kills . | . . . Allies Corrupted . | . . . Allies Melted . | . . . Intel | -11 -10 -10 ------- Run | Scr Mat Min Robot Analysis Total 1 | . 1 . Derelict Logs Recovered 1 | . . 1 Drone Launches . | . . . Drone Recoveries . | . . . Exploration | -11 -10 -10 ------------- Run | Scr Mat Min Turns Passed 1610 | 165 1196 249 Spaces Moved 707 | 69 536 102 Core 4 | 4 . . Treads 703 | 65 536 102 Legs . | . . . Wheels . | . . . Hover . | . . . Flight . | . . . Fastest Speed 50 | 50 160 160 Average Speed 161 | 153 161 164 Slowest Speed 240 | 160 240 240 Overloaded Moves . | . . . Propulsion Burnouts . | . . . Robots Hopped . | . . . Cave-ins Triggered . | . . . Exploration Rate (%) 36 | 7 80 21 Regions Visited 2 Branch Regions 1 Pre-discovered Areas . | . . . Known Exits Taken . | . . . Unknown Exits Taken 2 | 1 1 . Scrap Searched 1 | . . 1 Spaces Dug . | . . . Terrain Destroyed . | . . . Melee . | . . . Projectile . | . . . AOE . | . . . Terrain Rammed . | . . . Walls Destroyed . | . . . Machines Disabled . | . . . Actions | -11 -10 -10 --------- Run | Scr Mat Min Total 1009 | 98 774 137 Wait 145 | 1 142 2 Move 705 | 68 535 102 Hop . | . . . Pick Up 23 | 6 17 . Fast Attach 8 | 6 2 . Attach 8 | . 1 7 Detach . | . . . Swap 6 | . 5 1 Drop 13 | . 13 . Fire 101 | 17 59 25 Melee . | . . . Ram . | . . . Kick . | . . . Crush . | . . . Escape Stasis . | . . . Rewire . | . . . Trap . | . . . Miscellaneous . | . . . Route ------- -11/Scrapyard -10/Materials (discovered 3 exits: [*Mat x2] / [*Min]) -10/Mines (discovered 1 exit: [*Mat]) History --------- Turn | Location | Event 3 | -11/Scrapyard | Discovered new exit (range 15) 166 | -11/Scrapyard | Entered Materials 300 | -10/Materials | Build established: Mutant 336 | -10/Materials | Central database locked down 494 | -10/Materials | Discovered new exit (range 10) 868 | -10/Materials | Discovered new exit (range 16) 1306 | -10/Materials | Discovered new exit (range 13) 1362 | -10/Materials | Entered Mines 1362 | -10/Mines | Accompanied by 1 ally 1490 | -10/Mines | Core integrity fell below 50% 1523 | -10/Mines | Learned Materials security intel 1523 | -10/Mines | Discovered new exit (range 13) 1545 | -10/Mines | Assembled infested the area 1602 | -10/Mines | Core integrity fell below 20% 1611 | -10/Mines | Destroyed by as-42461 with Assembled Heavy Rifle Last Messages --------------- 01573_ as-85634 sneak attacks. 01573_ Technician 1a destroyed. 01575_ Core Extractor disabled. 01576_ Lgt. Treads destroyed. 01580_ as-26180 suffers critical hit (Destroy). 01580_ Lgt. Assault Rifle destroyed. 01586_ Assault Rifle destroyed. 01586_ System corrupted by crushing effect (+5). 01593_ as-63036 destroyed. 01593_ Switching to secondary target: as-64661. 01596_ System corrupted: Med. Laser failed to cycle. 01596_ Lgt. Treads destroyed. 01596_ Aluminum Leg destroyed. 01596_ Ion Engine destroyed. 01603_ System corrupted: Imp. Heat Sink rejected. 01603_ R-06 Scavenger destroyed. 01609_ Ion Engine destroyed. 01609_ as-64661 suffers critical hit (Burn). 01609_ as-64661 destroyed. 01609_ Switching to secondary target: as-59048. Map ----- +----------------------------------------------------+ | ??????????????????????????????????????????????? | | ??????????????????????????????????????????????? | | ??????????????????????????????????????????????? | | ??????????????????????????????????????????????? | | ??????????????????????????????????????????????? | | ???????????????????????##########?????????????? | | ???????????????????????# #?????????????? | | ???????????????????????# #?????????????? | | ???????????????????????# """#?????????????? | | ???????????????????????# """#??#########??? | | ???????????????????????# """#??# #??? | | ???????????????????????# = #??# #??? | | ???????????????????????######%###??# #??? | | ????????????????????????????# #????# =#??? | | ????????????????????????????# #????# =[ #??? | | ????????????????????????????# ###### % =#??? | | ????????????????????????????# ### #####??? | | ????????????????????????????# #### #?# #??????? | | ????????????????????????????# #??# #?# #??????? | | ????????????????????????????# #??# #?# #??????? | | ????????????????????????##### #??# #?# #??????? | | ????????????????????????# #??# ### #??????? | | ????????????????????????# #####??# #??????? | | ????????????????????????# #??????#########????? | | ???????????? ???????????#%#??????????## ##???? | | ???????????# ### ???#@#??####???## #???? | | ???????????# ##a#### ##### #???? | | ??????????# a*= *%! #????? | | ?????????? !%a %!== ###????? | | ?????????? ########### """[!%! #??????? | | ??????????? ???????????????# """ %# #??????? | | ????????????????????????????# "" ## #??????? | | ????????????????????????????# %! ## #??????? | | ????????????????????????????# ### #??????? | | ????????????????????????????# ##### #??????? | | ???????????????????????????# ##### ##?????? | | ?????????????????????????? #?# #?????? | | ?????????????????????????? ## #?????? | | ????????????????????????? ## ###?????? | | ????????????????????????? ####?# ##???????? | | ??????????????????????????????# #?????????? | | ??????????????????????????????# ??????????? | | ?????????????????????????????# < ??????????? | | ???????????????????????????? ??????????? | | ??????????????????????????? ??????????? | | ???????????????????????????### ## ??????????? | | ?????????????????????????????###?##???????????? | | ??????????????????????????????????????????????? | | ??????????????????????????????????????????????? | | ??????????????????????????????????????????????? | +----------------------------------------------------+ Best States ------------- Heat Dissipation 39 Energy Generation 10 Energy Capacity 250 Matter Stores 300 Matter Capacity 300 Sight Range 16 Terrain Scan Density 10 Armor Coverage 150 Evasion (%) 40 Recoil Reduction 2 Item Schematics ----------------- None Robot Schematics ------------------ None Fabricated ------------ Nothing Alien Tech Used ----------------- None Achievements -------------- None Challenges ------------ None Game ------ Seed GravmagSwarmThermoblaster Manual? 0 Play Time 00:10:46 Cumulative 47.9 hours Start 2022.12.29 @ 04:16:00 End 2022.12.29 @ 04:25:05 Sessions 1 Manual Loads 0 Difficulty Rogue Special Mode None Game No. 26 Rogue 26 Adventurer 0 Explorer 0 Win Type - Total 5 Types 2/0/0/0/0/0/2/0/1 Lore% 42 Gallery% 49 Achievement% 56 Wizard Run 0 Options --------- ASCII 0 Keyboard 0 Movement Mouse Keybinds 0 Fullscreen 1 Font 16/Terminus Map View 76x50 Tactical HUD 1 Map Filters NONE Filters NONE Steam 0 RUN: fc4e889e-e410-456b-bc6f-a5ffaf3e73e5